fUSD/lending_fUSD_20260218
["ID","MTS","AMOUNT","RATE_DAILY","PERIOD"]
[405937513,1771427450830,-500.0,0.0001405,2]
[405937514,1771427450839,-500.0,0.0001405,2]
[405937515,1771427450848,-765.60339842,0.0001405,2]
[405937516,1771427450859,-277.35679052,0.00014178,2]
[405937517,1771427450868,-1000.0,0.00014275,2]
[405937518,1771427450877,-1000.0,0.00014275,2]
[405937519,1771427450888,-1003.02217796,0.00014275,2]
[405937520,1771427450897,-1000.0,0.00014275,2]
[405937521,1771427450906,-1000.0,0.00014275,2]
[405937522,1771427450915,-500.0,0.00014275,2]
[405937523,1771427450926,-1000.0,0.00014275,2]
[405937524,1771427450936,-1000.0,0.00014275,2]
[405937525,1771427450946,-1003.65271303,0.00014275,2]
[405937526,1771427450956,-1000.0,0.00014275,2]
[405937527,1771427450966,-1000.0,0.00014275,2]
[405937528,1771427450977,-1000.0,0.00014275,2]
[405937529,1771427450987,-477.33821748,0.00014275,2]
[405937530,1771427450997,-512.09053139,0.00014275,2]
[405937531,1771427451008,-508.58168582,0.00014275,2]
[405937532,1771427451017,-505.28465419,0.00014275,2]
[405937533,1771427451028,-561.93408671,0.00014275,2]
[405937534,1771427451037,-1000.0,0.00014275,2]
[405937535,1771427451047,-1000.0,0.00014275,2]
[405937536,1771427451056,-696.10690076,0.00014275,2]
[405937537,1771427451068,-1000.0,0.00014275,2]
[405937538,1771427451078,-1000.0,0.00014275,2]
[405937539,1771427451087,-1000.0,0.00014275,2]
[405937540,1771427451097,-1000.0,0.00014275,2]
[405937541,1771427451107,-1067.47328951,0.00014275,2]
[405937542,1771427451117,-1000.0,0.00014275,2]
[405937543,1771427451127,-1000.0,0.00014275,2]
[405937544,1771427451138,-1000.0,0.00014275,2]
[405937545,1771427451148,-1000.0,0.00014275,2]
[405937546,1771427451160,-1001.64879923,0.00014275,2]
[405937547,1771427451170,-1003.00619934,0.00014275,2]
[405937548,1771427451179,-1000.0,0.00014275,2]
[405937549,1771427451191,-1000.0,0.00014275,2]
[405937550,1771427451202,-552.89419638,0.00014275,2]
[405937551,1771427451212,-503.21395664,0.00014275,2]
[405937552,1771427451224,-502.34676854,0.00014275,2]
[405937553,1771427451234,-1000.0,0.00014275,2]
[405937554,1771427451244,-1000.0,0.00014275,2]
[405937555,1771427451255,-1000.0,0.00014275,2]
[405937556,1771427451264,-61211.43270018,0.00014505,2]
[405937557,1771427451274,-287.61899177,0.00014726,2]
[405937558,1771427451284,-150.2245636,0.0001473,2]
[405937559,1771427451297,-53160.2329,0.0001473,2]
[405937560,1771427451306,-1889.54156641,0.00014813,2]
[405937561,1771427451317,-500.0,0.00014823,2]
[405937562,1771427451329,-512.08661125,0.00014823,2]
[405937563,1771427451339,-506.41325356,0.00014823,2]
[405937564,1771427451348,-1037.4625703,0.00014823,2]
[405937565,1771427451357,-1500.0,0.00014823,2]
[405937566,1771427451366,-1500.0,0.00014823,2]
[405937567,1771427451378,-1500.0,0.00014823,2]
[405937568,1771427451388,-187.09841863,0.00014823,2]
[405937569,1771427451397,-1500.0,0.00014823,2]
[405937570,1771427451407,-1500.0,0.00014823,2]
[405937571,1771427451416,-534.53110943,0.00014823,2]
[405937572,1771427451425,-1500.0,0.00014823,2]
[405937573,1771427451434,-1789.13324898,0.00014845,2]
[405937574,1771427451444,-250.0,0.00015,2]
[405937575,1771427451453,-900.0,0.00015068,2]
[405937576,1771427451462,-298.26089446,0.00015274,2]
[405937577,1771427451474,-1605.03701467,0.00015371,2]
[405937578,1771427451484,-1465.77482029,0.00015371,2]
[405937579,1771427451493,-2000.0,0.00015371,2]
[405937580,1771427451502,-1960.08113192,0.00015371,2]
[405937581,1771427451512,-1801.75028282,0.00015371,2]
[405937582,1771427451521,-2000.0,0.00015371,2]
[405937583,1771427451531,-61211.43270018,0.00015547,2]
[405937584,1771427451540,-482.75960727,0.00015637,2]
[405937585,1771427451551,-309.29654756,0.00015822,2]
[405937586,1771427451562,-183.30982713,0.00015864,2]
[405937587,1771427451571,-174.42,0.00015916,2]
[405937588,1771427451581,-1783.85919121,0.00015919,2]
[405937589,1771427451591,-2500.0,0.00015919,2]
[405937590,1771427451600,-482.75960727,0.00016028,2]
[405937591,1771427451609,-506.0,0.0001605,2]
[405937592,1771427451618,-320.74051982,0.0001637,2]
[405937593,1771427451628,-1789.13324898,0.00016372,2]
[405937594,1771427451637,-842.0,0.000164,2]
[405937595,1771427451647,-482.75960727,0.00016419,2]
[405937596,1771427451656,-900.0,0.00016438,2]
[405937597,1771427451665,-841.0,0.00016438,2]
[405937598,1771427451674,-348.354952,0.00016456,7]
[405937599,1771427451684,-3000.0,0.00016467,2]
[405937600,1771427451695,-61211.43270018,0.0001659,2]
[405937601,1771427451705,-173494.3017828,0.0001669,2]
[405937602,1771427451715,-1149.4383344,0.0001669,2]
[405937603,1771427451725,-841.0,0.00016712,2]
[405937604,1771427451735,-482.75960727,0.0001681,2]
[405937605,1771427451744,-356.9,0.00016889,2]
[405937606,1771427451754,-500.0,0.00016899,4]
[405937607,1771427451764,-578.20924308,0.00016899,4]
[405937608,1771427451773,-599.60298507,0.00016899,4]
[405937609,1771427451782,-621.78829552,0.00016899,4]
[405937610,1771427451792,-506.71767848,0.00016899,4]
[405937611,1771427451802,-500.0,0.00016899,4]
[405937612,1771427451813,-500.0,0.00016899,4]
[405937613,1771427451823,-500.0,0.00016899,4]
[405937614,1771427451833,-500.0,0.00016899,4]
[405937615,1771427451842,-500.0,0.00016899,4]
[405937616,1771427451854,-500.0,0.00016899,4]
[405937617,1771427451865,-500.0,0.00016899,4]
[405937618,1771427451874,-500.0,0.00016899,4]
[405937619,1771427451884,-500.0,0.00016899,4]
[405937620,1771427451894,-500.0,0.00016899,4]
[405937621,1771427451903,-500.0,0.00016899,4]
[405937622,1771427451912,-500.0,0.00016899,4]
[405937623,1771427451925,-500.0,0.00016899,4]
[405937624,1771427451936,-500.0,0.00016899,4]
[405937625,1771427451945,-174.61919141,0.00016899,4]
[405937626,1771427451954,-181.08010149,0.00016899,4]
[405937627,1771427451964,-500.0,0.00016899,4]
[405937628,1771427451973,-187.78006525,0.00016899,4]
[405937629,1771427451983,-500.0,0.00016899,4]
[405937630,1771427451992,-194.72792766,0.00016899,4]
[405937631,1771427452001,-500.0,0.00016899,4]
[405937632,1771427452010,-201.93286099,0.00016899,4]
[405937633,1771427452020,-500.0,0.00016899,4]
[405937634,1771427452029,-209.40437684,0.00016899,4]
[405937635,1771427452039,-500.0,0.00016899,4]
[405937636,1771427452049,-217.15233878,0.00016899,4]
[405937637,1771427452058,-500.0,0.00016899,4]
[405937638,1771427452068,-225.18697532,0.00016899,4]
[405937639,1771427452078,-500.0,0.00016899,4]
[405937640,1771427452088,-233.51889341,0.00016899,4]
[405937641,1771427452098,-151.0,0.00016899,4]
[405937642,1771427452108,-242.15909246,0.00016899,4]
[405937643,1771427452117,-151.0,0.00016899,4]
[405937644,1771427452127,-251.11897888,0.00016899,4]
[405937645,1771427452138,-151.0,0.00016899,4]
[405937646,1771427452149,-260.4103811,0.00016899,4]
[405937647,1771427452160,-151.0,0.00016899,4]
[405937648,1771427452170,-270.0455652,0.00016899,4]
[405937649,1771427452181,-200.0,0.00016899,4]
[405937650,1771427452193,-151.0,0.00016899,4]
[405937651,1771427452203,-280.03725112,0.00016899,4]
[405937652,1771427452213,-200.0,0.00016899,4]
[405937653,1771427452225,-151.0,0.00016899,4]
[405937654,1771427452234,-290.39862941,0.00016899,4]
[405937655,1771427452248,-200.0,0.00016899,4]
[405937656,1771427452258,-151.0,0.00016899,4]
[405937657,1771427452267,-266.96362876,0.00016899,4]
[405937658,1771427452287,-200.0,0.00016899,4]
[405937659,1771427452298,-151.0,0.00016899,4]
[405937660,1771427452307,-151.0,0.00016899,4]
[405937661,1771427452317,-245.2765902,0.00016899,4]
[405937662,1771427452327,-151.0,0.00016899,4]
[405937663,1771427452336,-151.0,0.00016899,4]
[405937664,1771427452346,-504.510834,0.00016899,4]
[405937665,1771427452358,-259.07488276,0.00016899,4]
[405937666,1771427452370,-693.3919763,0.00016899,4]
[405937667,1771427452380,-719.04747942,0.00016899,4]
[405937668,1771427452389,-745.65223616,0.00016899,4]
[405937669,1771427452399,-773.2413689,0.00016899,4]
[405937670,1771427452409,-801.85129955,0.00016899,4]
[405937671,1771427452418,-831.51979763,0.00016899,4]
[405937672,1771427452428,-862.28603014,0.00016899,4]
[405937673,1771427452437,-894.19061326,0.00016899,4]
[405937674,1771427452447,-927.27566595,0.00016899,4]
[405937675,1771427452458,-961.58486559,0.00016899,4]
[405937676,1771427452468,-997.16350561,0.00016899,4]
[405937677,1771427452479,-32853.2111,0.000169,2]
[405937678,1771427452490,-1000.0,0.000169,2]
[405937679,1771427452500,-1744.0224,0.000169,2]
[405937680,1771427452513,-332.60791905,0.00016918,2]
[405937681,1771427452525,-506.0,0.00016977,2]
[405937682,1771427452535,-841.0,0.00016986,2]
[405937683,1771427452547,-196759.55546227,0.00017,2]
[405937684,1771427452558,-151.0,0.00017,2]
[405937685,1771427452568,-300.0,0.00017,2]
[405937686,1771427452580,-615.98368184,0.00017,2]
[405937687,1771427452589,-2000.0,0.00017,2]
[405937688,1771427452599,-2000.0,0.00017,2]
[405937689,1771427452609,-2000.0,0.00017,2]
[405937690,1771427452620,-2000.0,0.00017,2]
[405937691,1771427452630,-2000.0,0.00017,2]
[405937692,1771427452645,-2000.0,0.00017,2]
[405937693,1771427452655,-3500.0,0.00017015,2]
[405937694,1771427452665,-160.0,0.0001704,2]
[405937695,1771427452676,-984.0,0.0001704,2]
[405937696,1771427452686,-2828.0,0.0001704,2]
[405937697,1771427452696,-2836.0,0.0001704,2]
[405937698,1771427452706,-350.0,0.0001722,2]
[405937699,1771427452716,-350.0,0.00017251,2]
[405937700,1771427452727,-841.0,0.0001726,2]
[405937701,1771427452739,-350.0,0.00017274,2]
[405937702,1771427452748,-265.07,0.00017292,2]
[405937703,1771427452759,-842.0,0.0001736,2]
[405937704,1771427452770,-2836.0,0.0001736,2]
[405937705,1771427452781,-2836.0,0.0001737,2]
[405937706,1771427452792,-344.91441206,0.00017466,2]
[405937707,1771427452802,-25949.63612918,0.00017477,2]
[405937708,1771427452815,-212.0,0.00017481,2]
[405937709,1771427452825,-841.0,0.00017534,2]
[405937710,1771427452840,-350.0,0.00017535,2]
[405937711,1771427452850,-4000.0,0.00017563,2]
[405937712,1771427452860,-200.0,0.000176,6]
[405937713,1771427452870,-2500.0,0.000176,6]
[405937714,1771427452882,-150.0,0.00017626,3]
[405937715,1771427452892,-160.0,0.0001768,2]
[405937716,1771427452902,-2836.0,0.0001768,2]
[405937717,1771427452913,-150.0,0.00017681,3]
[405937718,1771427452923,-220.89,0.00017692,2]
[405937719,1771427452933,-200.0,0.000177,6]
[405937720,1771427452943,-2500.0,0.000177,6]
[405937721,1771427452953,-163.0,0.00017736,3]
[405937722,1771427452963,-168.0,0.00017749,2]
[405937723,1771427452973,-350.0,0.00017781,2]
[405937724,1771427452984,-200.0,0.000178,6]
[405937725,1771427452994,-500.0,0.00017808,2]
[405937726,1771427453003,-841.0,0.00017808,2]
[405937727,1771427453013,-841.0,0.00017808,2]
[405937728,1771427453023,-800.0,0.00017808,2]
[405937729,1771427453036,-250.0,0.00017808,20]
[405937730,1771427453046,-250.0,0.00017808,20]
[405937731,1771427453056,-250.0,0.00017808,20]
[405937732,1771427453066,-250.0,0.00017808,20]
[405937733,1771427453077,-250.0,0.00017808,20]
[405937734,1771427453087,-250.0,0.00017808,20]
[405937735,1771427453097,-250.0,0.00017808,20]
[405937736,1771427453107,-175.581631,0.00017808,20]
[405937737,1771427453117,-500.0,0.00017863,2]
[405937738,1771427453127,-4588.3903,0.000179,2]
[405937739,1771427453136,-951.9112,0.000179,2]
[405937740,1771427453146,-5008.1800114,0.000179,3]
[405937741,1771427453156,-623.0,0.000179,6]
[405937742,1771427453166,-2887.40769395,0.000179,2]
[405937743,1771427453176,-1789.13324898,0.000179,2]
[405937744,1771427453186,-500.0,0.000179,2]
[405937745,1771427453196,-500.0,0.000179,2]
[405937746,1771427453206,-500.0,0.000179,2]
[405937747,1771427453216,-500.0,0.000179,2]
[405937748,1771427453230,-500.0,0.000179,2]
[405937749,1771427453240,-500.0,0.000179,2]
[405937750,1771427453250,-500.0,0.000179,2]
[405937751,1771427453260,-500.0,0.000179,2]
[405937752,1771427453270,-500.0,0.000179,2]
[405937753,1771427453280,-500.0,0.000179,2]
[405937754,1771427453291,-500.0,0.000179,2]
[405937755,1771427453302,-500.0,0.000179,2]
[405937756,1771427453312,-500.0,0.000179,2]
[405937757,1771427453322,-500.0,0.000179,2]
[405937758,1771427453333,-500.0,0.000179,2]
[405937759,1771427453342,-500.0,0.000179,2]
[405937760,1771427453352,-500.0,0.000179,2]
[405937761,1771427453362,-500.0,0.000179,2]
[405937762,1771427453372,-500.0,0.000179,2]
[405937763,1771427453382,-500.0,0.000179,2]
[405937764,1771427453391,-500.0,0.000179,2]
[405937765,1771427453401,-500.0,0.000179,2]
[405937766,1771427453412,-500.0,0.000179,2]
[405937767,1771427453425,-500.0,0.000179,2]
[405937768,1771427453435,-500.0,0.000179,2]
[405937769,1771427453445,-500.0,0.000179,2]
[405937770,1771427453455,-500.0,0.000179,2]
[405937771,1771427453465,-500.0,0.000179,2]
[405937772,1771427453475,-500.0,0.000179,2]
[405937773,1771427453484,-500.0,0.000179,2]
[405937774,1771427453494,-500.0,0.000179,2]
[405937775,1771427453504,-500.0,0.000179,2]
[405937776,1771427453514,-500.0,0.000179,2]
[405937777,1771427453524,-500.0,0.000179,2]
[405937778,1771427453534,-500.0,0.000179,2]
[405937779,1771427453544,-500.0,0.000179,2]
[405937780,1771427453554,-500.0,0.000179,2]
[405937781,1771427453564,-500.0,0.000179,2]
[405937782,1771427453575,-500.0,0.000179,2]
[405937783,1771427453588,-500.0,0.000179,2]
[405937784,1771427453603,-500.0,0.000179,2]
[405937785,1771427453614,-500.0,0.000179,2]
[405937786,1771427453627,-500.0,0.000179,2]
[405937787,1771427453637,-500.0,0.000179,2]
[405937788,1771427453648,-500.0,0.000179,2]
[405937789,1771427453658,-500.0,0.000179,2]
[405937790,1771427453668,-500.0,0.000179,2]
[405937791,1771427453678,-500.0,0.000179,2]
[405937792,1771427453688,-472.68340978,0.000179,2]
[405937793,1771427453700,-506.0,0.00017904,3]
[405937794,1771427453710,-500.0,0.00017918,2]
[405937795,1771427453720,-500.0,0.0001797,2]
[405937796,1771427453731,-500.0,0.0001797,2]
[405937797,1771427453742,-500.0,0.0001797,2]
[405937798,1771427453752,-900.0,0.0001797,2]
[405937799,1771427453763,-1000.0,0.0001797,2]
[405937800,1771427453773,-1000.0,0.0001797,2]
[405937801,1771427453783,-1808.72010234,0.0001797,2]
[405937802,1771427453794,-500.0,0.00017972,2]
[405937803,1771427453804,-1961.0,0.00017973,2]
[405937804,1771427453818,-2078.03494059,0.0001799,2]
[405937805,1771427453827,-168.0,0.00017992,2]
[405937806,1771427453839,-192.0,0.00017993,2]
[405937807,1771427453851,-156.0,0.00017993,2]
[405937808,1771427453861,-156.0,0.00017993,2]
[405937809,1771427453871,-153.0,0.00017993,2]
[405937810,1771427453881,-152.0,0.00017993,2]
[405937811,1771427453893,-156.0,0.00017993,2]
[405937812,1771427453903,-156.0,0.00017993,2]
[405937813,1771427453914,-159.0,0.00017993,2]
[405937814,1771427453924,-1508.0,0.00017993,2]
[405937815,1771427453935,-500.0,0.00017999,2]
[405937816,1771427453944,-500.0,0.00017999,2]
[405937817,1771427453954,-500.0,0.00017999,2]
[405937818,1771427453964,-500.0,0.00017999,2]
[405937819,1771427453976,-500.0,0.00017999,2]
[405937820,1771427453986,-250.1,0.00017999,2]
[405937821,1771427453996,-1406.97,0.00017999,2]
[405937822,1771427454006,-1406.97,0.00017999,2]
[405937823,1771427454025,-1406.97,0.00017999,2]
[405937824,1771427454036,-1406.97,0.00017999,2]
[405937825,1771427454046,-1406.97,0.00017999,2]
[405937826,1771427454057,-1406.97,0.00017999,2]
[405937827,1771427454067,-1406.97,0.00017999,2]
[405937828,1771427454078,-1406.97,0.00017999,2]
[405937829,1771427454090,-1407.13483398,0.00017999,2]
[405937830,1771427454101,-611.22,0.00017999,2]
[405937831,1771427454111,-611.22,0.00017999,2]
[405937832,1771427454121,-611.22,0.00017999,2]
[405937833,1771427454132,-611.22,0.00017999,2]
[405937834,1771427454142,-611.22,0.00017999,2]
[405937835,1771427454152,-611.22,0.00017999,2]
[405937836,1771427454163,-611.22,0.00017999,2]
[405937837,1771427454173,-611.22,0.00017999,2]
[405937838,1771427454183,-611.42,0.00017999,2]
[405937839,1771427454193,-500.0,0.00017999,2]
[405937840,1771427454203,-519.42,0.00017999,2]
[405937841,1771427454214,-688.12,0.00017999,2]
[405937842,1771427454224,-688.12,0.00017999,2]
[405937843,1771427454235,-688.12,0.00017999,2]
[405937844,1771427454245,-688.12,0.00017999,2]
[405937845,1771427454255,-688.12,0.00017999,2]
[405937846,1771427454265,-688.12,0.00017999,2]
[405937847,1771427454275,-688.12,0.00017999,2]
[405937848,1771427454285,-688.12,0.00017999,2]
[405937849,1771427454296,-688.34,0.00017999,2]
[405937850,1771427454306,-307.06195353,0.00017999,2]
[405937851,1771427454320,-300.0,0.00017999,2]
[405937852,1771427454331,-666.0,0.00017999,2]
[405937853,1771427454341,-300.0,0.00017999,2]
[405937854,1771427454352,-666.0,0.00017999,2]
[405937855,1771427454362,-300.0,0.00017999,2]
[405937856,1771427454372,-300.0,0.00017999,2]
[405937857,1771427454383,-300.0,0.00017999,2]
[405937858,1771427454396,-150.0,0.00017999,2]
[405937859,1771427454407,-181.95722338,0.00017999,2]
[405937860,1771427454418,-505.80737732,0.00018,5]
[405937861,1771427454430,-1539985.98756113,0.00018,2]
[405937862,1771427454828,-507.62791487,0.00018,2]
[405937863,1771427454840,-348.06084147,0.00018,2]
[405937864,1771427454852,-816.78701816,0.00018,2]
[405937865,1771427455012,-500.0,8.733e-05,2]
[405937866,1771427455022,-500.0,9.007e-05,2]
[405937867,1771427455032,-2500.0,0.000178,6]
[405937868,1771427455045,-3475.0,0.000179,6]
[405937869,1771427455055,-11357.24814305,0.00018,2]
[405937870,1771427455066,-8009.85460712,0.00018,2]
[405937871,1771427455365,-1991.48958418,0.00018,2]
[405937872,1771427553423,500.0,7.206e-05,2]
[405937873,1771427553470,500.0,7.206e-05,2]
[405937874,1771427553514,500.0,7.206e-05,2]
[405937875,1771427553567,484.77798489,7.206e-05,2]
[405937876,1771427553606,500.0,7.206e-05,2]
[405937877,1771427553641,500.0,7.206e-05,2]
[405937878,1771427553682,500.0,7.206e-05,2]
[405937879,1771427553770,500.0,7.206e-05,2]
[405937880,1771427553832,500.0,7.206e-05,2]
[405937881,1771427553889,500.0,7.206e-05,2]
[405937882,1771427553932,500.0,7.206e-05,2]
[405937883,1771427553989,500.0,7.206e-05,2]
[405937884,1771427554048,500.0,7.206e-05,2]
[405937885,1771427554155,500.0,7.206e-05,2]
[405937886,1771427554207,500.0,7.206e-05,2]
[405937887,1771427554264,500.0,7.206e-05,2]
[405937888,1771427554311,500.0,7.206e-05,2]
[405937889,1771427639545,500.0,7.206e-05,2]
[405937890,1771427639852,500.0,7.206e-05,2]
[405937891,1771427640189,500.0,7.206e-05,2]
[405937892,1771427640535,500.0,7.206e-05,2]
[405937893,1771427640845,500.0,7.206e-05,2]
[405937894,1771427641191,500.0,7.206e-05,2]
[405937895,1771427641514,500.0,7.206e-05,2]
[405937896,1771427641839,500.0,7.206e-05,2]
[405937897,1771427642712,500.0,7.206e-05,2]
[405937898,1771427643022,500.0,7.206e-05,2]
[405937899,1771427643118,500.0,7.206e-05,2]
[405937900,1771427643436,334.77798489,7.206e-05,2]
[405937901,1771427705689,168.0,7.206e-05,3]
[405937902,1771427881744,150000.0,0.00018,30]
[405937903,1771428547962,521.01615025,8e-05,10]
[405937911,1771428631915,-392.60764336,7.888e-05,2]
[405937912,1771428631925,-151.0,8.075e-05,2]
[405937913,1771428631934,-151.0,8.075e-05,2]
[405937914,1771428631943,-151.0,8.075e-05,2]
[405937915,1771428631953,-300.0,8.077e-05,2]
[405937916,1771428631962,-227.04235664,8.077e-05,2]
[405937917,1771428632015,-972.95764336,8.077e-05,2]
[405937918,1771428632025,-150.0,8.077e-05,2]
[405937919,1771428632035,-300.0,8.077e-05,2]
[405937920,1771428632044,-5544.87823939,8.078e-05,2]
[405937921,1771428637971,-671.45180543,8.078e-05,2]
[405937922,1771428637983,-956.79071888,8.078e-05,2]
[405937923,1771428637994,-3350.70995216,8.078e-05,2]
[405937924,1771428638006,-17785.83770818,8.078e-05,2]
[405937925,1771428638093,-1349.7082906,8.078e-05,2]
[405937947,1771428640103,-3470340.62328536,8.078e-05,2]
[405937948,1771428640113,-500.0,8.105e-05,2]
[405937949,1771428640123,-1924.93846264,8.105e-05,2]
[405937950,1771428640132,-541.95409886,8.105e-05,2]
[405937951,1771428640140,-250.0,8.177e-05,2]
[405937952,1771428640149,-7529.757975,8.178e-05,2]
[405937953,1771428640161,-7529.757975,8.178e-05,2]
[405937954,1771428640170,-204.304563,8.219e-05,2]
[405937955,1771428640179,-5000.0,8.225e-05,2]
[405937956,1771428640189,-15000.0,8.31e-05,2]
[405937957,1771428640199,-3702.17439572,8.367e-05,2]
[405937958,1771428640209,-168.63570163,8.367e-05,2]
[405937959,1771428640219,-500.0,8.367e-05,2]
[405937960,1771428640229,-500.0,8.367e-05,2]
[405937961,1771428640239,-500.0,8.367e-05,2]
[405937962,1771428640249,-500.0,8.367e-05,2]
[405937963,1771428640259,-165.19851393,8.367e-05,2]
[405937964,1771428640268,-500.27840167,8.367e-05,2]
[405937965,1771428640278,-500.0,8.367e-05,2]
[405937966,1771428640287,-503.24422827,8.367e-05,2]
[405937967,1771428640297,-500.0,8.367e-05,2]
[405937968,1771428640306,-500.0,8.367e-05,2]
[405937969,1771428640316,-500.0,8.367e-05,2]
[405937971,1771428640573,-500.0,8.367e-05,2]
[405937972,1771428640584,-500.0,8.367e-05,2]
[405937973,1771428640594,-167.33946284,8.367e-05,2]
[405937974,1771428640603,-500.0,8.367e-05,2]
[405937975,1771428640611,-500.0,8.367e-05,2]
[405937976,1771428640620,-306.32454784,8.367e-05,2]
[405937977,1771428640628,-500.0,8.367e-05,2]
[405937978,1771428640637,-500.0,8.367e-05,2]
[405937980,1771428640647,-164.39891665,8.367e-05,2]
[405937981,1771428640656,-5000.0,8.504e-05,2]
[405937982,1771428640665,-431.0,8.562e-05,2]
[405937983,1771428640674,-169.0,8.579e-05,2]
[405937984,1771428640683,-1216.428,8.598e-05,2]
[405937985,1771428640692,-188.352,8.598e-05,2]
[405937986,1771428640702,-2500.0,8.674e-05,2]
[405937987,1771428640711,-2500.0,8.7e-05,3]
[405937988,1771428640721,-500.0,8.773e-05,2]
[405937989,1771428640730,-500.0,8.773e-05,2]
[405937990,1771428640739,-447.17761209,8.773e-05,2]
[405937992,1771428640749,-500.0,8.773e-05,2]
[405937993,1771428640758,-500.0,8.773e-05,2]
[405937994,1771428640767,-500.0,8.773e-05,2]
[405937995,1771428640777,-646.18827131,8.773e-05,2]
[405937996,1771428640786,-5000.0,8.8e-05,3]
[405937997,1771428640796,-420.0,8.884e-05,2]
[405937998,1771428640805,-1680.0,8.884e-05,2]
[405937999,1771428640815,-255.0,8.884e-05,2]
[405938000,1771428640824,-420.0,8.884e-05,2]
[405938001,1771428640833,-7600.0,8.9e-05,3]
[405938002,1771428640842,-1000.0,8.907e-05,2]
[405938003,1771428640851,-1000.0,8.915e-05,2]
[405938004,1771428640866,-1000.0,8.915e-05,2]
[405938005,1771428640875,-1000.0,8.915e-05,2]
[405938006,1771428640884,-1000.0,8.915e-05,2]
[405938007,1771428640893,-1000.0,8.915e-05,2]
[405938008,1771428640902,-341.49183462,8.915e-05,2]
[405938009,1771428640911,-1000.0,8.915e-05,2]
[405938010,1771428640920,-5000.0,8.916e-05,2]
[405938011,1771428640929,-5000.0,8.916e-05,2]
[405938012,1771428640939,-5000.0,8.916e-05,2]
[405938013,1771428640948,-5000.0,8.916e-05,2]
[405938014,1771428640956,-2998.32045974,8.916e-05,2]
[405938015,1771428640966,-250.0,8.995e-05,2]
[405938016,1771428640976,-250.0,8.995e-05,2]
[405938017,1771428640985,-10100.0,9e-05,3]
[405938018,1771428640994,-1500.0,9.463e-05,2]
[405938019,1771428641003,-512.75173509,9.463e-05,2]
[405938020,1771428641012,-1500.0,9.463e-05,2]
[405938021,1771428641022,-1500.0,9.463e-05,2]
[405938022,1771428641031,-1500.0,9.463e-05,2]
[405938023,1771428641040,-17272.46,9.598e-05,2]
[405938024,1771428641049,-299.99,9.67e-05,2]
[405938025,1771428641058,-999.99,9.67e-05,2]
[405938026,1771428641067,-6212.8,9.67e-05,2]
[405938027,1771428641076,-9999.99,9.67e-05,2]
[405938028,1771428641086,-9999.99,9.67e-05,2]
[405938029,1771428641096,-150.99,9.67e-05,2]
[405938030,1771428641105,-5298.58,9.67e-05,2]
[405938031,1771428641115,-587.0,9.773e-05,2]
[405938032,1771428641124,-2351.0,9.773e-05,2]
[405938033,1771428641133,-433.0,9.773e-05,2]
[405938034,1771428641142,-587.0,9.773e-05,2]
[405938035,1771428641152,-151.0,0.0001,2]
[405938036,1771428641166,-151.0,0.0001,2]
[405938037,1771428641175,-151.0,0.0001,2]
[405938038,1771428641184,-151.0,0.0001,2]
[405938039,1771428641193,-151.0,0.0001,2]
[405938040,1771428641203,-151.0,0.0001,2]
[405938041,1771428641212,-151.0,0.0001,2]
[405938042,1771428641222,-151.0,0.0001,2]
[405938043,1771428641232,-151.0,0.0001,2]